fUSD/lending_fUSD_20250422
["ID","MTS","AMOUNT","RATE_DAILY","PERIOD"]
[358641715,1745331040964,-288.139586,0.000249,7]
[358641717,1745331040974,-288.139586,0.000249,7]
[358641719,1745331040985,-1925.17834,0.000249,7]
[358641721,1745331040994,-600.719389,0.000249,2]
[358641723,1745331041004,-600.719389,0.000249,2]
[358641725,1745331041014,-151.0,0.000249,7]
[358641727,1745331041024,-151.0,0.000249,7]
[358641729,1745331041033,-166.697118,0.000249,7]
[358641731,1745331041043,-166.697118,0.000249,7]
[358641733,1745331041052,-961.109523,0.000249,7]
[358641735,1745331041061,-151.0,0.000249,7]
[358641737,1745331041071,-151.0,0.000249,7]
[358641739,1745331041080,-151.0,0.000249,7]
[358641741,1745331041090,-349.917181,0.000249,7]
[358641743,1745331041099,-349.917181,0.000249,7]
[358641745,1745331041108,-151.0,0.000249,7]
[358641747,1745331041118,-151.0,0.000249,7]
[358641749,1745331041127,-6373.256723,0.000249,7]
[358641751,1745331041136,-192.936505,0.000249,7]
[358641753,1745331041145,-192.936505,0.000249,7]
[358641755,1745331041155,-6373.256723,0.000249,7]
[358641757,1745331041166,-609.764686,0.000249,7]
[358641759,1745331041176,-609.764686,0.000249,7]
[358641761,1745331041185,-153.540532,0.000249,7]
[358641763,1745331041195,-153.540532,0.000249,7]
[358641765,1745331041205,-251.148032,0.000249,7]
[358641767,1745331041214,-251.148032,0.000249,7]
[358641769,1745331041225,-824.702684,0.000249,7]
[358641771,1745331041235,-824.702684,0.000249,7]
[358641773,1745331041245,-151.0,0.000249,7]
[358641775,1745331041256,-151.0,0.000249,7]
[358641777,1745331041266,-572322.455019,0.000249,3]
[358641779,1745331041275,-151.0,0.000249,7]
[358641781,1745331041285,-151.0,0.000249,7]
[358641782,1745331041294,-151.0,0.000249,7]
[358641784,1745331041304,-153.093573,0.000249,7]
[358641786,1745331041313,-151.0,0.000249,7]
[358641788,1745331041323,-151.0,0.000249,7]
[358641790,1745331041332,-151.0,0.000249,7]
[358641792,1745331041346,-1389.19761,0.000249,7]
[358641794,1745331041355,-151.0,0.000249,7]
[358641796,1745331041365,-1389.19761,0.000249,7]
[358641798,1745331041375,-151.0,0.000249,7]
[358641800,1745331041385,-151.0,0.000249,7]
[358641802,1745331041396,-999.99,0.0002498,2]
[358641804,1745331041406,-6907.98,0.0002498,2]
[358641806,1745331041418,-499.99,0.0002498,2]
[358641808,1745331041429,-691.92,0.0002498,2]
[358641810,1745331041439,-9999.99,0.0002498,2]
[358641812,1745331041449,-9999.99,0.0002498,2]
[358641814,1745331041458,-234.41,0.0002498,2]
[358641816,1745331041467,-9999.99,0.0002498,2]
[358641818,1745331041477,-296.23,0.0002498,2]
[358641820,1745331041486,-150.99,0.0002498,2]
[358641822,1745331041496,-500.0,0.00024999,2]
[358641824,1745331041506,-999.188999,0.00025,15]
[358641826,1745331041515,-50000.0,0.00025,10]
[358641829,1745331041525,-350.0,0.00025,2]
[358641831,1745331041535,-5650.9412697,0.00025,3]
[358641833,1745331041544,-2469.0,0.0002517,2]
[358641835,1745331041554,-4088.66848248,0.0002521,2]
[358641837,1745331041563,-280.0,0.000253,10]
[358641839,1745331041572,-1000.0,0.00025452,2]
[358641841,1745331041588,-1001.58818391,0.00025452,2]
[358641843,1745331041599,-1000.0,0.00025452,2]
[358641845,1745331041609,-1000.0,0.00025452,2]
[358641847,1745331041620,-2681.0,0.00025568,2]
[358641849,1745331041630,-1000.0,0.00025885,2]
[358641851,1745331041640,-175.65,0.00025982,2]
[358641853,1745331041650,-336.3485003,0.00026247,2]
[358641855,1745331041660,-799.22,0.00026249,3]
[358641857,1745331041671,-757.64,0.00026576,2]
[358641859,1745331041681,-1106.2,0.00026591,2]
[358641861,1745331041691,-4088.66848248,0.0002698,2]
[358641864,1745331041701,-400.0,0.00027,2]
[358641866,1745331041711,-1152.0,0.00027035,2]
[358641867,1745331041721,-161.95,0.00027397,2]
[358641870,1745331041732,-150.0,0.00027397,5]
[358641872,1745331041742,-3457.0,0.00027563,2]
[358641874,1745331041752,-2000.0,0.00027594,4]
[358641876,1745331041762,-467.14113062,0.0002783,15]
[358641878,1745331041772,-250.0,0.00027945,5]
[358641880,1745331041782,-1000.0,0.00028238,2]
[358641882,1745331041792,-175.65,0.00028344,2]
[358641883,1745331041802,-350.0,0.00028493,5]
[358641885,1745331041812,-4088.66848248,0.0002875,2]
[358641887,1745331041822,-1106.2,0.00028855,2]
[358641889,1745331041831,-500.0,0.00028999,2]
[358641891,1745331041841,-70348.82052086,0.00029,2]
[358641893,1745331041852,-450.0,0.00029,2]
[358641895,1745331041862,-450.0,0.00029041,5]
[358641897,1745331041872,-795.0,0.00029119,2]
[358641899,1745331041882,-1443.0,0.00029119,2]
[358641901,1745331041892,-1284.0,0.00029119,2]
[358641903,1745331041902,-4164.0,0.00029119,2]
[358641905,1745331041911,-2143.0,0.00029282,2]
[358641907,1745331041922,-3981.0,0.00029282,2]
[358641909,1745331041932,-892.516,0.00029282,2]
[358641911,1745331041943,-337.0,0.000293,2]
[358641913,1745331041952,-287.883,0.00029365,2]
[358641914,1745331041963,-153.739,0.00029365,2]
[358641915,1745331041973,-2057.0,0.00029365,2]
[358641916,1745331041983,-1333.0,0.00029365,2]
[358641917,1745331041993,-916.0,0.00029365,2]
[358641918,1745331042004,-1613.0,0.00029463,2]
[358641932,1745331042215,-513.6311572,0.00029589,5]
[358641935,1745331042249,-1000.0,0.00029863,2]
[358641937,1745331042260,-6413.97680332,0.0003,20]
[358641939,1745331042269,-6538.378137,0.0003,10]
[358641941,1745331042279,-258.84663774,0.0003,60]
[358641943,1745331042289,-215.54,0.000301,2]
[358641945,1745331042299,-610.0,0.00030137,2]
[358641947,1745331042308,-4840.0,0.00030185,2]
[358641949,1745331042319,-4088.66848248,0.0003052,2]
[358641951,1745331042329,-500.0,0.00030999,2]
[358641953,1745331042341,-317833.82670504,0.00031,120]
[358641955,1745331042351,-178.927859,0.00031,7]
[358641957,1745331042360,-178.927859,0.00031,7]
[358641959,1745331042370,-151.0,0.00031,7]
[358641961,1745331042381,-151.0,0.00031,7]
[358641963,1745331042391,-151.0,0.00031,7]
[358641965,1745331042400,-155.568167,0.00031,7]
[358641968,1745331042416,-151.0,0.00031,7]
[358641970,1745331042426,-152.462961,0.00031,7]
[358641972,1745331042436,-151.0,0.00031,7]
[358641974,1745331042446,-153.003464,0.00031,7]
[358641976,1745331042457,-162.355907,0.00031,7]
[358641978,1745331042470,-157.005154,0.00031,7]
[358641980,1745331042480,-154.295653,0.00031,7]
[358641982,1745331042490,-151.0,0.00031,7]
[358641984,1745331042500,-153.924331,0.00031,7]
[358641986,1745331042510,-151.0,0.00031,7]
[358641988,1745331042520,-151.0,0.00031,7]
[358641990,1745331042529,-445.148552,0.00031,7]
[358641992,1745331042539,-445.148552,0.00031,7]
[358641994,1745331042549,-151.0,0.00031,7]
[358641996,1745331042559,-151.0,0.00031,7]
[358641998,1745331042568,-233.28413,0.00031,7]
[358642000,1745331042579,-233.28413,0.00031,7]
[358642002,1745331042589,-880.065452,0.00031,7]
[358642004,1745331042599,-151.0,0.00031,7]
[358642006,1745331042609,-151.0,0.00031,7]
[358642008,1745331042619,-203.916053,0.00031,7]
[358642010,1745331042629,-151.0,0.00031,7]
[358642012,1745331042639,-176.148123,0.00031,7]
[358642014,1745331042650,-176.148123,0.00031,7]
[358642016,1745331042660,-155.276307,0.00031,7]
[358642018,1745331042671,-151.0,0.00031,7]
[358642020,1745331042681,-151.0,0.00031,7]
[358642022,1745331042691,-151.0,0.00031,7]
[358642024,1745331042701,-206.763401,0.00031,7]
[358642026,1745331042711,-206.763401,0.00031,7]
[358642028,1745331042723,-151.0,0.00031,7]
[358642030,1745331042732,-151.0,0.00031,7]
[358642032,1745331042743,-151.0,0.00031,7]
[358642034,1745331042754,-151.0,0.00031,7]
[358642036,1745331042764,-151.0,0.00031,7]
[358642038,1745331042774,-500.0,0.00031,2]
[358642040,1745331042784,-220.287975,0.00031,7]
[358642042,1745331042794,-220.287975,0.00031,7]
[358642044,1745331042804,-351.11975,0.00031,7]
[358642046,1745331042814,-351.11975,0.00031,7]
[358642048,1745331042825,-153.584064,0.00031,7]
[358642050,1745331042835,-151.0,0.00031,7]
[358642052,1745331042847,-220.791811,0.00031,7]
[358642056,1745331042871,-212.067905,0.00031,7]
[358642058,1745331042889,-151.0,0.00031,7]
[358642060,1745331042900,-276.6876,0.00031,7]
[358642061,1745331042912,-276.6876,0.00031,7]
[358642062,1745331042924,-151.0,0.00031,7]
[358642063,1745331042936,-216.779686,0.00031,7]
[358642064,1745331042947,-151.0,0.00031,7]
[358642065,1745331042959,-216.779686,0.00031,7]
[358642066,1745331042970,-202.891519,0.00031,7]
[358642067,1745331042981,-202.891519,0.00031,7]
[358642068,1745331042992,-151.0,0.00031,7]
[358642070,1745331043002,-195.208495,0.00031,7]
[358642073,1745331043013,-195.208495,0.00031,7]
[358642076,1745331043024,-151.0,0.00031,7]
[358642079,1745331043035,-151.0,0.00031,7]
[358642081,1745331043046,-285.422169,0.00031,7]
[358642083,1745331043060,-285.422169,0.00031,7]
[358642086,1745331043071,-151.0,0.00031,7]
[358642088,1745331043082,-151.0,0.00031,7]
[358642090,1745331043093,-151.0,0.00031,7]
[358642092,1745331043103,-288.139586,0.00031,7]
[358642094,1745331043114,-288.139586,0.00031,7]
[358642098,1745331043124,-1925.17834,0.00031,7]
[358642101,1745331043135,-600.719389,0.00031,2]
[358642105,1745331043146,-600.719389,0.00031,2]
[358642109,1745331043157,-151.0,0.00031,7]
[358642112,1745331043170,-159.945697,0.00031,7]
[358642114,1745331043181,-215.840883,0.00031,7]
[358642116,1745331043193,-215.840883,0.00031,7]
[358642119,1745331043204,-155.996402,0.00031,7]
[358642122,1745331043214,-151.0,0.00031,7]
[358642125,1745331043225,-151.0,0.00031,7]
[358642126,1745331043235,-151.0,0.00031,7]
[358642128,1745331043245,-151.0,0.00031,7]
[358642129,1745331043255,-163.125258,0.00031,7]
[358642130,1745331043266,-166.697118,0.00031,7]
[358642131,1745331043276,-166.697118,0.00031,7]
[358642132,1745331043288,-151.0,0.00031,7]
[358642133,1745331043299,-151.0,0.00031,7]
[358642134,1745331043310,-151.0,0.00031,7]
[358642135,1745331043327,-961.109523,0.00031,7]
[358642136,1745331043346,-151.0,0.00031,7]
[358642137,1745331043364,-151.0,0.00031,7]
[358642138,1745331043374,-151.0,0.00031,7]
[358642139,1745331043385,-151.0,0.00031,7]
[358642140,1745331043395,-831.433939,0.00031,7]
[358642141,1745331043406,-151.0,0.00031,7]
[358642142,1745331043419,-831.433939,0.00031,7]
[358642143,1745331043430,-230.814725,0.00031,7]
[358642144,1745331043440,-230.814725,0.00031,7]
[358642145,1745331043451,-151.0,0.00031,7]
[358642146,1745331043462,-151.0,0.00031,7]
[358642147,1745331043473,-151.0,0.00031,7]
[358642148,1745331043484,-151.0,0.00031,7]
[358642149,1745331043494,-151.0,0.00031,7]
[358642150,1745331043504,-237.710209,0.00031,7]
[358642151,1745331043515,-237.710209,0.00031,7]
[358642152,1745331043525,-210.119588,0.00031,7]
[358642153,1745331043536,-210.119588,0.00031,7]
[358642154,1745331043546,-1629.145313,0.00031,7]
[358642155,1745331043556,-1629.145313,0.00031,7]
[358642156,1745331043567,-151.0,0.00031,7]
[358642157,1745331043577,-349.917181,0.00031,7]
[358642158,1745331043587,-349.917181,0.00031,7]
[358642159,1745331043598,-151.0,0.00031,7]
[358642160,1745331043608,-151.0,0.00031,7]
[358642161,1745331043619,-151.0,0.00031,7]
[358642162,1745331043630,-175.442798,0.00031,7]
[358642163,1745331043640,-175.442798,0.00031,7]
[358642164,1745331043650,-6373.256723,0.00031,7]
[358642166,1745331043661,-192.936505,0.00031,7]
[358642168,1745331043673,-151.0,0.00031,7]
[358642169,1745331043683,-192.936505,0.00031,7]
[358642170,1745331043694,-151.0,0.00031,7]
[358642171,1745331043704,-6373.256723,0.00031,7]
[358642172,1745331043715,-609.764686,0.00031,7]
[358642173,1745331043727,-609.764686,0.00031,7]
[358642174,1745331043737,-153.540532,0.00031,7]
[358642175,1745331043747,-153.540532,0.00031,7]
[358642176,1745331043758,-251.148032,0.00031,7]
[358642177,1745331043768,-251.148032,0.00031,7]
[358642178,1745331043779,-151.0,0.00031,7]
[358642179,1745331043790,-824.702684,0.00031,7]
[358642180,1745331043800,-824.702684,0.00031,7]
[358642181,1745331043811,-224.477254,0.00031,7]
[358642182,1745331043822,-184.160598,0.00031,7]
[358642183,1745331043833,-151.0,0.00031,7]
[358642184,1745331043843,-151.0,0.00031,7]
[358642185,1745331043853,-151.0,0.00031,7]
[358642186,1745331043863,-151.0,0.00031,7]
[358642187,1745331043874,-151.0,0.00031,7]
[358642188,1745331043885,-151.0,0.00031,7]
[358642189,1745331043895,-1389.19761,0.00031,7]
[358642191,1745331043906,-151.0,0.00031,7]
[358642192,1745331043917,-1389.19761,0.00031,7]
[358642193,1745331043927,-151.0,0.00031,7]
[358642194,1745331043938,-151.0,0.00031,7]
[358642195,1745331043949,-1106.2,0.00031119,2]
[358642196,1745331043960,-2000.0,0.00031645,4]
[358642197,1745331043970,-1506.76938807,0.00032,2]
[358642198,1745331043981,-164.64,0.00032089,120]
[358642199,1745331043992,-2258.0,0.0003211,3]
[358642200,1745331044002,-795.0,0.00032119,2]
[358642201,1745331044013,-1443.0,0.00032119,2]
[358642202,1745331044023,-1284.0,0.00032119,2]
[358642203,1745331044034,-4164.0,0.00032119,2]
[358642204,1745331044044,-2143.0,0.00032282,2]
[358642205,1745331044055,-3981.0,0.00032282,2]
[358642206,1745331044065,-876.0,0.00032282,2]
[358642207,1745331044076,-4088.66848248,0.0003229,2]
[358642208,1745331044086,-150.0,0.00032365,2]
[358642209,1745331044096,-150.0,0.00032365,2]
[358642210,1745331044106,-2057.0,0.00032365,2]
[358642211,1745331044116,-1333.0,0.00032365,2]
[358642212,1745331044127,-371.0,0.00032365,2]
[358642213,1745331044137,-336.3485003,0.00032594,2]
[358642214,1745331044147,-182.56,0.00032877,30]
[358642215,1745331044158,-151.0,0.00032877,7]
[358642216,1745331044170,-151.0,0.00032877,7]
[358642217,1745331044180,-151.0,0.00032877,7]
[358642218,1745331044190,-1500.0,0.00032877,120]
[358642219,1745331044200,-685.65,0.00032904,30]
[358642220,1745331044211,-25121.40915349,0.00033,2]
[358642221,1745331044221,-550.0,0.00033,2]
[358642222,1745331044231,-6776.0,0.00033055,3]
[358642223,1745331044242,-1106.2,0.00033383,2]
[358642224,1745331044252,-1670.15825717,0.00033916,5]
[358642225,1745331044263,-4088.66848248,0.0003406,2]
[358642226,1745331044273,-150.0,0.00034548,10]
[358642227,1745331044283,-856.72617165,0.0003489,14]
[358642228,1745331044294,-3162.0,0.00034994,3]
[358642229,1745331044304,-354.36991513,0.00035,30]
[358642230,1745331044315,-191.95183039,0.00035,120]
[358642231,1745331044326,-669.1238295,0.00035,30]
[358642232,1745331044338,-600.0,0.00035,2]
[358642233,1745331044351,-304.31,0.00035068,2]
[358642234,1745331044361,-794.0,0.00035119,2]
[358642235,1745331044371,-1440.0,0.00035119,2]
[358642236,1745331044383,-1281.0,0.00035119,2]
[358642237,1745331044394,-4155.0,0.00035119,2]
[358642238,1745331044405,-1218.373,0.00035282,2]
[358642239,1745331044417,-2931.372,0.00035282,2]
[358642240,1745331044428,-876.0,0.00035282,2]
[358642241,1745331044437,-150.0,0.00035365,2]
[358642242,1745331044448,-150.0,0.00035365,2]
[358642243,1745331044458,-2043.0,0.00035365,2]
[358642244,1745331044468,-1333.0,0.00035365,2]
[358642245,1745331044478,-520.94346662,0.00035471,5]
[358642246,1745331044488,-530.7080461,0.00035471,5]
[358642247,1745331044498,-1331.00484655,0.00035471,5]
[358642248,1745331044508,-150.0,0.00035616,5]
[358642249,1745331044519,-1106.2,0.00035647,2]
[358642250,1745331044528,-2000.0,0.00035696,4]
[358642251,1745331044538,-4088.66848248,0.0003583,2]
[358642252,1745331044549,-223.32791605,0.0003592,2]
[358642253,1745331044560,-150.0,0.00035929,3]
[358642254,1745331044570,-294535.8777809,0.0003593,7]
[358642255,1745331044580,-151.0,0.0003593,7]
[358642256,1745331044590,-290.538001,0.0003593,7]
[358642257,1745331044600,-151.0,0.0003593,7]
[358642258,1745331044610,-151.0,0.0003593,7]
[358642259,1745331044621,-445.148552,0.0003593,7]
[358642260,1745331044632,-445.148552,0.0003593,7]
[358642261,1745331044642,-151.0,0.0003593,7]
[358642262,1745331044652,-151.0,0.0003593,7]
[358642263,1745331044662,-233.28413,0.0003593,7]
[358642264,1745331044674,-233.28413,0.0003593,7]
[358642265,1745331044685,-880.065452,0.0003593,7]
[358642266,1745331044695,-151.0,0.0003593,7]
[358642267,1745331044706,-151.0,0.0003593,7]
[358642268,1745331044716,-151.0,0.0003593,7]
[358642269,1745331044726,-176.148123,0.0003593,7]
[358642270,1745331044735,-176.148123,0.0003593,7]
[358642271,1745331044745,-151.0,0.0003593,7]
[358642272,1745331044755,-151.0,0.0003593,7]
[358642273,1745331044765,-151.0,0.0003593,7]
[358642274,1745331044775,-206.763401,0.0003593,7]
[358642275,1745331044785,-206.763401,0.0003593,7]
[358642276,1745331044795,-151.0,0.0003593,7]
[358642277,1745331044805,-151.0,0.0003593,7]
[358642278,1745331044815,-151.0,0.0003593,7]
[358642279,1745331044825,-151.0,0.0003593,7]
[358642280,1745331044835,-151.0,0.0003593,7]
[358642281,1745331044846,-220.287975,0.0003593,7]
[358642282,1745331044855,-220.287975,0.0003593,7]
[358642283,1745331044866,-351.11975,0.0003593,7]
[358642284,1745331044876,-351.11975,0.0003593,7]
[358642285,1745331044886,-214.84011,0.0003593,7]
[358642286,1745331044896,-220.791811,0.0003593,7]
[358642287,1745331044907,-151.0,0.0003593,7]
[358642288,1745331044918,-276.6876,0.0003593,7]
[358642289,1745331044928,-276.6876,0.0003593,7]
[358642290,1745331044938,-151.0,0.0003593,7]
[358642291,1745331044948,-216.779686,0.0003593,7]
[358642292,1745331044957,-151.0,0.0003593,7]
[358642293,1745331044968,-216.779686,0.0003593,7]
[358642294,1745331044978,-202.891519,0.0003593,7]
[358642295,1745331044988,-202.891519,0.0003593,7]
[358642296,1745331045000,-151.0,0.0003593,7]
[358642297,1745331045010,-195.208495,0.0003593,7]
[358642298,1745331045020,-195.208495,0.0003593,7]
[358642299,1745331045030,-151.0,0.0003593,7]
[358642300,1745331045040,-151.704033,0.0003593,7]
[358642301,1745331045050,-285.422169,0.0003593,7]
[358642302,1745331045060,-285.422169,0.0003593,7]
[358642303,1745331045070,-151.0,0.0003593,7]
[358642304,1745331045079,-151.0,0.0003593,7]
[358642305,1745331045089,-151.0,0.0003593,7]
[358642306,1745331045098,-288.139586,0.0003593,7]
[358642307,1745331045107,-288.139586,0.0003593,7]
[358642308,1745331045117,-1925.17834,0.0003593,7]
[358642309,1745331045317,-600.719389,0.0003593,2]
[358642310,1745331045328,-600.719389,0.0003593,2]
[358642311,1745331045346,-151.0,0.0003593,7]
[358642312,1745331045356,-215.840883,0.0003593,7]
[358642313,1745331045366,-215.840883,0.0003593,7]
[358642314,1745331045376,-158.005309,0.0003593,7]
[358642315,1745331045386,-151.0,0.0003593,7]
[358642316,1745331045396,-151.0,0.0003593,7]
[358642317,1745331045405,-151.0,0.0003593,7]
[358642318,1745331045415,-166.697118,0.0003593,7]
[358642319,1745331045426,-166.697118,0.0003593,7]
[358642320,1745331045436,-151.0,0.0003593,7]
[358642321,1745331045445,-151.0,0.0003593,7]
[358642322,1745331045454,-213.802853,0.0003593,7]
[358642323,1745331045464,-961.109523,0.0003593,7]
[358642324,1745331045473,-151.0,0.0003593,7]
[358642325,1745331045482,-151.0,0.0003593,7]
[358642326,1745331045491,-151.0,0.0003593,7]
[358642327,1745331045500,-831.433939,0.0003593,7]
[358642328,1745331045511,-152.620112,0.0003593,7]
[358642329,1745331045520,-831.433939,0.0003593,7]
[358642330,1745331045530,-230.814725,0.0003593,7]
[358642331,1745331045540,-230.814725,0.0003593,7]
[358642332,1745331045550,-151.0,0.0003593,7]
[358642333,1745331045559,-151.0,0.0003593,7]
[358642334,1745331045569,-151.0,0.0003593,7]
[358642335,1745331045579,-151.0,0.0003593,7]
[358642336,1745331045589,-237.710209,0.0003593,7]
[358642337,1745331045598,-237.710209,0.0003593,7]
[358642338,1745331045608,-210.119588,0.0003593,7]
[358642339,1745331045617,-210.119588,0.0003593,7]
[358642340,1745331045627,-1629.145313,0.0003593,7]
[358642341,1745331045636,-1629.145313,0.0003593,7]
[358642342,1745331045646,-159.278177,0.0003593,7]
[358642343,1745331045656,-349.917181,0.0003593,7]
[358642344,1745331045666,-349.917181,0.0003593,7]
[358642345,1745331045679,-157.133633,0.0003593,7]
[358642346,1745331045689,-151.0,0.0003593,7]
[358642347,1745331045699,-151.0,0.0003593,7]
[358642348,1745331045709,-175.442798,0.0003593,7]
[358642349,1745331045719,-175.442798,0.0003593,7]
[358642350,1745331045730,-6373.256723,0.0003593,7]
[358642351,1745331045739,-192.936505,0.0003593,7]
[358642352,1745331045749,-151.0,0.0003593,7]
[358642353,1745331045759,-192.936505,0.0003593,7]
[358642354,1745331045769,-151.0,0.0003593,7]
[358642355,1745331045779,-6373.256723,0.0003593,7]
[358642356,1745331045789,-609.764686,0.0003593,7]
[358642357,1745331045800,-609.764686,0.0003593,7]
[358642358,1745331045809,-153.540532,0.0003593,7]
[358642359,1745331045819,-153.540532,0.0003593,7]
[358642360,1745331045829,-166.603638,0.0003593,7]
[358642361,1745331045838,-251.148032,0.0003593,7]
[358642362,1745331045848,-251.148032,0.0003593,7]
[358642363,1745331045858,-151.0,0.0003593,7]
[358642364,1745331045868,-824.702684,0.0003593,7]
[358642365,1745331045877,-824.702684,0.0003593,7]
[358642366,1745331045887,-151.0,0.0003593,7]
[358642367,1745331045896,-151.0,0.0003593,7]
[358642368,1745331045906,-151.0,0.0003593,7]
[358642369,1745331045915,-151.0,0.0003593,7]
[358642370,1745331045927,-152.186648,0.0003593,7]
[358642371,1745331045936,-151.0,0.0003593,7]
[358642372,1745331045946,-1389.19761,0.0003593,7]
[358642373,1745331045955,-151.0,0.0003593,7]
[358642374,1745331045965,-1389.19761,0.0003593,7]
[358642375,1745331045974,-151.0,0.0003593,7]
[358642376,1745331045984,-151.0,0.0003593,7]
[358642377,1745331045993,-9487.0,0.00036199,3]
[358642378,1745331046003,-650.0,0.00037,2]
[358642379,1745331046012,-1106.2,0.0003791,2]
[358642380,1745331046021,-4427.0,0.00038137,3]
[358642381,1745331046031,-876.0,0.00038282,2]
[358642382,1745331046040,-160.0,0.00038356,5]
[358642383,1745331046050,-182.56,0.00038356,30]
[358642384,1745331046060,-387.121,0.00038365,2]
[358642385,1745331046070,-22066.6,0.000384,14]
[358642386,1745331046080,-4782.78,0.000384,14]
[358642387,1745331046091,-167.36377,0.000384,120]
[358642388,1745331046104,-153.07,0.000389,2]
[358642389,1745331046114,-153.07,0.000389,2]
[358642390,1745331046123,-153.07,0.000389,2]
[358642391,1745331046133,-153.07,0.000389,2]
[358642392,1745331046143,-153.07,0.000389,2]
[358642393,1745331046153,-153.07,0.000389,2]
[358642394,1745331046162,-153.07,0.000389,2]
[358642395,1745331046174,-153.07,0.000389,2]
[358642396,1745331046184,-153.07,0.000389,2]
[358642397,1745331046195,-153.07,0.000389,2]
[358642398,1745331046205,-153.07,0.000389,2]
[358642399,1745331046215,-153.07,0.000389,2]
[358642400,1745331046224,-153.07,0.000389,2]
[358642401,1745331046234,-153.07,0.000389,2]
[358642402,1745331046243,-153.07,0.000389,2]
[358642403,1745331046253,-153.07,0.000389,2]
[358642404,1745331046262,-153.07,0.000389,2]
[358642405,1745331046272,-153.07,0.000389,2]
[358642406,1745331046282,-153.07,0.000389,2]
[358642407,1745331046293,-153.07,0.000389,2]
[358642408,1745331046305,-153.07,0.000389,2]
[358642409,1745331046315,-153.07,0.000389,2]
[358642410,1745331046325,-153.07,0.000389,2]
[358642411,1745331046339,-153.07,0.000389,2]
[358642412,1745331046349,-153.07,0.000389,2]
[358642413,1745331046358,-153.07,0.000389,2]
[358642414,1745331046368,-153.07,0.000389,2]
[358642415,1745331046379,-153.07,0.000389,2]
[358642416,1745331046390,-153.07,0.000389,2]
[358642417,1745331046400,-153.07,0.000389,2]
[358642418,1745331046410,-153.07,0.000389,2]
[358642419,1745331046422,-153.07,0.000389,2]
[358642420,1745331046431,-153.07,0.000389,2]
[358642421,1745331046441,-153.07,0.000389,2]
[358642422,1745331046450,-153.07,0.000389,2]
[358642423,1745331046460,-153.07,0.000389,2]
[358642424,1745331046470,-153.07,0.000389,2]
[358642425,1745331046480,-153.07,0.000389,2]
[358642426,1745331046490,-153.07,0.000389,2]
[358642427,1745331046501,-153.07,0.000389,2]
[358642428,1745331046511,-336.3485003,0.00038941,2]
[358642429,1745331046521,-3366.45929378,0.00039,120]
[358642430,1745331046531,-700.0,0.00039,2]
[358642431,1745331046541,-13282.0,0.00039641,5]
[358642432,1745331046551,-460.20687986,0.00039726,15]